Cogmind - Beta 16 --- EXPLORER MODE // 2025.11.13 @ 11:58:21 Player: K.K.Y. Result: Destroyed by X-72 Disruptor with Improved Arc Projector Performance ------------- Evolutions (5) 2500 Regions Visited (5) 1000 Robots Destroyed (76) 380 Value Destroyed (2763) 2763 Prototype IDs (12) 240 Alien Tech Used (0) 0 Bonus (1460) 1460 TOTAL SCORE: 8343 Bonus ------- Follower Combat Kills 685 Registered with UFD 300 Met Optimus in HQ 500 Friendly Fire -25 Cogmind --------- Core Integrity 0/1000 Matter 280/300 Energy 93/100 System Corruption 14% Temperature Cool (0) Movement Hovering (45) Location -5/Factory Parts ------- > --- POWER (3) -------- (None) > --- PROPULSION (6) --- Overtuned Scrapsphere Linear Gravjet > --- UTILITY (6) ------ Machine Analyzer > --- WEAPON (3) ------- (None) > --- INVENTORY (5) ---- Light Armored Exoskeleton Scrap Suit Authchip [Power] Peak State ------------ > --- POWER ------------ Neutrino Core Neutrino Core Meta Core > --- PROPULSION ------- Advanced Treads Medium Treads Medium Treads Armored Medium Treads Light Armored Exoskeleton > --- UTILITY ---------- Advanced Heat Sink High-capacity Storage Unit Advanced Weight Redist. System Machine Analyzer Improved Transmission Jammer Recalibrator > --- WEAPON ----------- Arc Projector Long-range Proton Cannon Advanced Assault Cannon Magnetic Acceleration Cannon > --- INVENTORY -------- Overtuned Scrapsphere Overtuned Scrapsphere Scrap Suit Advanced Signal Interpreter IFF Parser Transport Network Coupler Authchip [Power] Authchip [Armor] Authchip [Weapon] System Guard System Restoration Module Makeshift System Restoration Module Makeshift System Restoration Module Makeshift System Restoration Module Improved Arc Projector Voltaic Drivehammer Chainsword [Rating: 98] Favorites ----------- Power Meta Core Engine Ion Engine Power Core Meta Core Propulsion Medium Treads Treads Medium Treads Leg Aluminum Leg Wheel Overtuned Scrapsphere Hover Unit Linear Gravjet Utility Machine Analyzer Device Recalibrator Storage High-capacity Storage Unit Processor Machine Analyzer Protection Core Shielding Weapon Light Cannon Energy Gun Medium Laser Energy Cannon Long-range Proton Cannon Ballistic Cannon Light Cannon Special Weapon Improved Remote Datajack Impact Weapon Hammer Slashing Weapon Chainsword Build | -11 -10 -10 -7 -7 -5 ------- Run | Yrd Mat Sub Rec Scr Fac Slots Evolved 11 | . 1 . . . 10 Power 2 | . . . . . 2 Propulsion 4 | . . . . . 4 Utility 4 | . 1 . . . 3 Weapon 1 | . . . . . 1 Parts Attached 57 | 6 5 8 7 7 24 Power 6 | 1 . 1 . . 4 Engine 2 | 1 . . . . 1 Core 4 | . . 1 . . 3 Reactor . | . . . . . . Propulsion 14 | 2 . 3 3 3 3 Treads 8 | . . 3 3 1 1 Leg 3 | 2 . . . . 1 Wheel 2 | . . . . 2 . Hover 1 | . . . . . 1 Flight . | . . . . . . Utility 20 | 2 3 . 3 2 10 Device 14 | 1 . . 2 2 9 Storage 3 | 1 1 . 1 . . Processor 2 | . 1 . . . 1 Hackware . | . . . . . . Protection 1 | . 1 . . . . Artifact . | . . . . . . Weapon 17 | 1 2 4 1 2 7 Energy Gun 5 | 1 1 . 1 . 2 Energy Cannon 1 | . . . . . 1 Ballistic Gun . | . . . . . . Ballistic Cannon 6 | . . 4 . 2 . Launcher . | . . . . . . Special Weapon 3 | . . . . . 3 Impact Weapon 1 | . 1 . . . . Slashing Weapon 1 | . . . . . 1 Piercing Weapon . | . . . . . . Special Melee Weapon . | . . . . . . Unidentified Prototypes 2 | . . 1 . . 1 Parts Lost 30 | . 2 3 3 . 22 Power 4 | . . 1 . . 3 Propulsion 7 | . 1 1 1 . 4 Utility 9 | . 1 . 1 . 7 Weapon 10 | . . 1 1 . 8 Highest Loss Streak 15 | . 1 2 1 . 15 To Critical Strikes . | . . . . . . Average Backups 13 | 1 7 10 15 18 16 Power . | . . . . . . Propulsion 1 | . . . . 3 2 Utility 7 | . 3 5 8 11 11 Weapon 3 | . 3 4 5 3 2 Tool/Special . | . . . . . . Unused Backups 22 | 1 . . 1 11 9 Power 1 | 1 . . . . . Propulsion 2 | . . . . 2 . Utility 10 | . . . 1 . 9 Weapon 8 | . . . . 8 . Tool/Special 1 | . . . . 1 . Average Slot Usage (%) 86 | . 81 83 88 98 76 Engine 3 | . 12 6 . . . Core 6 | . . 1 9 10 12 Treads 16 | . . 13 27 23 18 Leg 3 | . 13 3 . . . Device 6 | . 4 . 5 9 16 Storage 10 | . 12 11 9 10 4 Processor 10 | . 11 11 9 10 5 Protection 4 | . 1 11 6 . . Energy Gun 9 | . 23 3 5 10 4 Ballistic Cannon 12 | . . 16 15 20 4 Peak Build Rating 98 | 6 10 26 42 50 98 Average Rating 33 | 2 8 15 38 45 77 On Entrance 22 | . 6 10 26 40 50 Avg Prop Armor Cover (%) 9 | . . 6 . 3 15 Naked Turns . | . . . . . . Heaviest Build 104 | 18 20 34 58 65 104 Greatest Support 114 | 20 20 40 78 78 114 Greatest Overweight (x) 24 | . 6 2 1 21 24 Average Overweight (x) . | . . . . . . Largest Inventory Capacity 20 | 10 15 15 20 20 20 Average Capacity 15 | 7 10 12 17 20 19 Most Carried 20 | 5 10 13 20 20 20 Average Carried 14 | 2 7 10 15 19 18 Final Capacity 20 | 10 10 15 20 20 5 Final Carried 20 | 1 10 12 20 20 5 Class Distribution -------------------- 53% | Hacker-Mutant 33% | Commander-Skirmisher 6% | Hacker-Skirmisher 3% | Hacker-Tank Dominant Class ---------------- Hacker-Mutant | -10/Materials Hacker-Mutant | -10/Subcaves Hacker-Mutant | -7/Recycling Commander-Skirmisher | -7/Scraptown Hacker-Skirmisher | -5/Factory Resources | -11 -10 -10 -7 -7 -5 ----------- Run | Yrd Mat Sub Rec Scr Fac Matter Collected 2160 | 213 87 606 562 174 518 Remotely 327 | . . . 327 . . Salvage Created 3289 | . 418 325 342 137 2067 Parts 143 | . 16 36 15 6 70 Haulers Intercepted 3 | . 2 . . . 1 Recyclers Shooed 5 | . 1 . 1 . 3 Parts Field Recycled . | . . . . . . Retrieved Matter . | . . . . . . Parts Self-Destructed . | . . . . . . Prevented . | . . . . . . Parts Restored 2 | . . . . 2 . Broken 2 | . . . . 2 . Kills | -11 -10 -10 -7 -7 -5 ------- Run | Yrd Mat Sub Rec Scr Fac Combat Hostiles Destroyed 57 | . 7 19 5 3 23 Melee 2 | . . . . . 2 Guns 11 | . 6 2 2 . 1 Cannons 35 | . . 17 3 3 12 AOE 2 | . . . . . 2 Classes Destroyed 18 | . 6 3 3 3 3 Worker 3 | . . . . . 3 Builder 1 | . 1 . . . . Hauler 3 | . 2 . . . 1 Recycler 5 | . . . . . 5 Mechanic 1 | . 1 . . . . Operator 1 | . . . . . 1 Turret 2 | . . 2 . . . Watcher 3 | . 2 . . . 1 Swarmer 11 | . 2 5 . . 4 Grunt 15 | . 5 . . . 10 Protector 1 | . . . 1 . . Sentry 5 | . . 1 2 . 2 Hunter 1 | . . . 1 . . Programmer 8 | . . . 1 . 7 Subdweller 13 | . . 13 . . . Explorer 1 | . . . . 1 . Guru 1 | . . . . 1 . Mutant 1 | . . . . 1 . Best Kill Streak 8 | . 2 4 2 2 8 Combat Bots Only 4 | . 2 4 2 2 4 Max Kills in Single Turn 3 | . 1 1 1 1 3 Gunslinging . | . . . . . . Exploded 2 | . . . . . 2 Melee 1 | . . . . . 1 Uniques/NPCs Destroyed . | . . . . . . Combat | -11 -10 -10 -7 -7 -5 -------- Run | Yrd Mat Sub Rec Scr Fac Hostile Shots Fired 709 | . 45 135 82 . 447 Missed 214 | . 13 39 23 . 139 Hits 495 | . 32 96 59 . 308 Projectile 495 | . 32 96 59 . 308 Critical Strikes 12 | . . . . . 12 Part Disruptions 7 | . . . . . 7 Damage Taken 5120 | . 275 959 262 6 3618 Core 1234 | . 36 168 30 . 1000 Absorbed by Shields 414 | . . . 31 3 380 Redirected to Shielding 36 | . . 33 3 . . Ignored by Resistances 3317 | . 174 596 197 6 2344 Core Remaining (%) 53 | 100 . . . 6 . Volleys Fired 242 | . 51 86 18 7 80 Largest 4 | . 2 2 3 3 4 Hottest 220 | . 100 80 115 139 220 Shots Fired 497 | . 102 137 49 21 188 Gun 204 | . 102 7 14 7 74 Cannon 291 | . . 130 35 14 112 Launcher . | . . . . . . Special 2 | . . . . . 2 Kinetic 226 | . . 130 35 14 47 Thermal 109 | . 102 7 . . . Explosive . | . . . . . . Electromagnetic 161 | . . . 14 7 140 Robot Hit Streak 48 | . 24 33 15 13 48 Robot Miss Streak 3 | . 2 3 1 1 1 Penetration Max . | . . . . . . Secondary Targets 1 | . 1 . . . . Max Gunslinging Chain 1 | . 1 . . . . Shots Hit Robots 379 | . 78 81 36 8 176 Core Hits 140 | . 21 30 16 5 68 Critical Kills . | . . . . . . Critical Parts Destroyed 4 | . . 3 1 . . Critical Strikes 28 | . 8 13 3 . 4 Burn 8 | . 8 . . . . Destroy 10 | . . 9 1 . . Blast 7 | . . 4 2 . 1 Corrupt 2 | . . . . . 2 Sever 1 | . . . . . 1 Melee Attacks 20 | . 8 4 . . 8 Impact 12 | . 8 4 . . . Slashing 8 | . . . . . 8 Piercing . | . . . . . . Sneak Attacks 1 | . . . . . 1 Combat Hostiles . | . . . . . . Follow-up Attacks . | . . . . . . Damage Inflicted 8648 | . 977 1877 585 196 5013 Guns 1892 | . 969 63 124 35 701 Cannons 5015 | . . 1814 449 161 2591 Explosions 1346 | . . . . . 1346 Melee 335 | . . . . . 335 Ramming 60 | . 8 . 12 . 40 Kinetic 3687 | . . 1814 449 161 1263 Thermal 2319 | . 969 63 . . 1287 Explosive . | . . . . . . Electromagnetic 2247 | . . . 124 35 2088 Impact . | . . . . . . Slashing 335 | . . . . . 335 Piercing . | . . . . . . Highest Corruption 14 | . . . 1 . 14 Average Corruption 4 | . . . 1 . 5 Corruption Purged 8 | . . . 2 . 6 Corruption Blocked . | . . . . . . Effects 20 | . . . . . 20 Message Errors 6 | . . . . . 6 Matter Fused 4 | . . . . . 4 Heat Flow Errors 3 | . . . . . 3 Energy Discharges 1 | . . . . . 1 Parts Rejected 1 | . . . . . 1 Data Loss (minor) 3 | . . . . . 3 Misdirections 1 | . . . . . 1 Weapon Failures 1 | . . . . . 1 Overload Shots . | . . . . . . Overflow Damage 344 | . . . 7 24 313 Projectiles 139 | . . . 7 24 108 Explosions 200 | . . . . . 200 Melee 5 | . . . . . 5 Knockbacks 20 | . . 7 3 . 10 Impact . | . . . . . . Kinetic 20 | . . 7 3 . 10 Secondary . | . . . . . . Self-Inflicted Damage 259 | . . . . . 259 Shots 6 | . . . . . 6 Rammed 8 | . . . 4 . 4 Targets Rammed 10 | . 2 . 4 . 4 Kicked 2 | . 2 . . . . Crushed . | . . . . . . Highest Temperature 417 | . 348 . 132 156 417 Average Temperature 112 | . 119 . 44 50 135 Received Heat Transfer 973 | . 171 234 102 . 466 Effects 7 | . 2 . . . 5 Shutdowns 1 | . . . . . 1 Energy Bleed 2 | . 1 . . . 1 Interference 2 | . . . . . 2 Damage (minor) 2 | . 1 . . . 1 Siege Activations . | . . . . . . Martial Activations . | . . . . . . Shielding Activations . | . . . . . . Robots Disrupted 6 | . . . . 1 5 Combat Hostiles 6 | . . . . 1 5 Robots Corrupted 6 | . . . . . 6 Combat Hostiles 6 | . . . . . 6 Parts Fried 16 | . . . . . 16 Impact Corruptions . | . . . . . . Robots Melted 3 | . 3 . . . . Combat Hostiles 1 | . 1 . . . . Parts Melted 22 | . 15 1 . 1 5 Heat Transferred 4513 | . 3478 185 . . 850 Parts Sabotaged . | . . . . . . Parts Stolen . | . . . . . . Parts Stripped . | . . . . . . Power Chain Reactions 4 | . . . . . 4 Alert | -11 -10 -10 -7 -7 -5 ------- Run | Yrd Mat Sub Rec Scr Fac Maximum Alert Level . | . . . . . . Low Security (%) 100 | 100 100 . 100 . 100 Level 1 . | . . . . . . Level 2 . | . . . . . . Level 3 . | . . . . . . Level 4 . | . . . . . . Level 5 . | . . . . . . High Security . | . . . . . . Max Security . | . . . . . . Peak Influence 124 | . 50 . 47 . 124 Initial 47 | . . . 47 . . Average 9 | . 2 . 1 . 35 Influence Increases 1769 | . 242 370 188 . 969 Destroy 0b10 Robot/C 980 | . 140 160 140 . 540 Destroy 0b10 Robot/NC 105 | . 30 . 20 . 55 Destroy Leader 152 | . 38 . . . 114 Allied During Kill 14 | . . . 7 . 7 Successful Hack 25 | . . . 20 . 5 Disable Machine 24 | . . . . . 24 Destroy Structure 109 | . 4 . 1 . 104 Partial Spotted 15 | . . . . . 15 Lose Combat Pursuer 345 | . 30 210 . . 105 Influence Decreases 1769 | . 242 235 323 . 969 Entered New Map 88 | . . . 88 . . Time Decay 1418 | . 232 235 196 . 755 Lost Part 184 | . 10 . 10 . 164 Lost Ally 79 | . . . 29 . 50 Squads Dispatched 5 | . . . . . 5 Investigation 1 | . . . . . 1 Extermination 3 | . . . . . 3 Reinforcement 1 | . . . . . 1 Assault . | . . . . . . Garrison . | . . . . . . Intercept . | . . . . . . Searches Triggered . | . . . . . . Construction Impeded . | . . . . . . Haulers Reinforced 1 | . . . . . 1 Active Scanning Responses . | . . . . . . Cargo Convoy Interrupts 1 | . . . . . 1 Stealth | -11 -10 -10 -7 -7 -5 --------- Run | Yrd Mat Sub Rec Scr Fac Distress Signals 1 | . 1 . . . . Communications Jammed 35 | . . . . . 35 Distress Signals 35 | . . . . . 35 Times Spotted 121 | . 16 33 10 12 50 Peak Tracking Total 9 | . 2 4 3 4 9 Tactical Retreats 14 | . 1 7 . . 6 Traps | -11 -10 -10 -7 -7 -5 ------- Run | Yrd Mat Sub Rec Scr Fac Traps Triggered 4 | . 2 . . . 2 Indirectly . | . . . . . . Trap Hack Attempts . | . . . . . . Triggered . | . . . . . . Disarmed . | . . . . . . Reprogrammed . | . . . . . . Reused . | . . . . . . Traps Extracted . | . . . . . . Installed . | . . . . . . Triggered . | . . . . . . Machines | -11 -10 -10 -7 -7 -5 ---------- Run | Yrd Mat Sub Rec Scr Fac Machines Disabled 10 | . . 2 . 2 6 Max in Single Turn 5 | . . 1 . 1 5 Machines Repaired . | . . . . . . Machines Dismantled . | . . . . . . Machines Sabotaged . | . . . . . . Overloaded Fab Kills . | . . . . . . Hacking | -11 -10 -10 -7 -7 -5 --------- Run | Yrd Mat Sub Rec Scr Fac Machines Accessed 15 | . . . 8 5 2 Terminals 7 | . . . 6 . 1 Fabricators . | . . . . . . Repair Stations . | . . . . . . Recycling Units 1 | . . . . . 1 Scanalyzers . | . . . . . . Garrison Access . | . . . . . . Total Hacks 62 | . . . 42 15 5 Successful 54 | . . . 34 15 5 Failed 8 | . . . 8 . . Catastrophic 1 | . . . 1 . . Database Lockouts . | . . . . . . Manual 2 | . . . 2 . . Terminals 21 | . . . 18 . 3 Fabricators . | . . . . . . Repair Stations . | . . . . . . Recycling Units 2 | . . . . . 2 Scanalyzers . | . . . . . . Garrison Access . | . . . . . . Terminal Hacks 51 | . . . 33 15 3 Record 33 | . . . 25 8 . Part Schematic 3 | . . . 3 . . Robot Schematic 1 | . . . 1 . . Robot Analysis 6 | . . . . 6 . Prototype ID Bank 2 | . . . 2 . . Branch Access Points 1 | . . . 1 . . Emergency Access Points 1 | . . . . . 1 Fabricator Index 1 | . . . . . 1 Registered Components 1 | . . . . . 1 Zone Layout 1 | . . . 1 . . Proto ID Catalog 1 | . . . . 1 . Fabricator Hacks . | . . . . . . Repair Station Hacks . | . . . . . . Recycling Unit Hacks 2 | . . . . . 2 Report Inventory 1 | . . . . . 1 Retrieve Components 1 | . . . . . 1 Scanalyzer . | . . . . . . Garrison Access Hacks . | . . . . . . Unauthorized Hacks 1 | . . . 1 . . Terminals 1 | . . . 1 . . Sabotage 1 | . . . 1 . . Fabricators . | . . . . . . Repair Stations . | . . . . . . Recycling Units . | . . . . . . Scanalyzers . | . . . . . . Garrison Access . | . . . . . . Data Cores Recovered 1 | . . . . . 1 Used . | . . . . . . Hacking Detections 6 | . . . 5 . 1 Full Trace Events 6 | . . . 5 . 1 Feedback Events 2 | . . . 2 . . Corruption 2 | . . . 2 . . Feedback Blocked . | . . . . . . Robot Schematics Acquired 1 | . . . 1 . . Robots Built . | . . . . . . Authchips . | . . . . . . Time . | . . . . . . Total Robot Build Rating . | . . . . . . Part Schematics Acquired 3 | . . . 3 . . Parts Built . | . . . . . . Authchips . | . . . . . . Time . | . . . . . . Total Part Build Rating . | . . . . . . Part Studies Acquired . | . . . . . . Parts Repaired . | . . . . . . Time . | . . . . . . Parts Recycled . | . . . . . . Recycled Matter . | . . . . . . Retrieved Matter . | . . . . . . Retrieved Components 8 | . . . . . 8 Parts Scanalyzed . | . . . . . . Part Schematics Acquired . | . . . . . . Parts Damaged . | . . . . . . Bothacking | -11 -10 -10 -7 -7 -5 ------------ Run | Yrd Mat Sub Rec Scr Fac Used RIF Installer . | . . . . . . Robots Hacked . | . . . . . . Non-combat . | . . . . . . Combat . | . . . . . . Robot Hacks Applied . | . . . . . . Relay Couplers Released . | . . . . . . Fabnet Peak Effective % . | . . . . . . Robots Rewired 20 | . . . 20 . . Allies Hacked 5 | . . . 2 . 3 Hacks Repelled . | . . . . . . Allies | -11 -10 -10 -7 -7 -5 -------- Run | Yrd Mat Sub Rec Scr Fac Total Allies 20 | . . . 20 . . Largest Group 12 | . . . 12 12 7 Highest-Rated Group 272 | . . . 272 245 157 Highest-Rated Ally 40 | . . . 40 40 40 Total Orders 4 | . . . 4 . . GUARD 1 | . . . 1 . . DROP 1 | . . . 1 . . PICKUP 1 | . . . 1 . . COLLECT 1 | . . . 1 . . Ally Attacks 68 | . . . 23 33 12 Total Damage 2161 | . . . 275 1192 694 Kills 20 | . . . 4 12 4 Allies Corrupted . | . . . . . . Allies Melted 5 | . . . . 5 . Intel | -11 -10 -10 -7 -7 -5 ------- Run | Yrd Mat Sub Rec Scr Fac Active Infowar (turns) 13039 | 21 2486 3165 2902 2878 1587 Terrain 940 | 21 919 . . . . Structural 1622 | . . . . 1622 . Machine Analysis 12816 | . 2396 3165 2902 2878 1475 Jamming 977 | . . . . . 977 Robot Analysis Total 6 | . . . . 6 . Derelict Logs Recovered 2 | . . 2 . . . Drone Launches 2 | . . . . . 2 Drone Recoveries 2 | . . . . . 2 Exploration | -11 -10 -10 -7 -7 -5 ------------- Run | Yrd Mat Sub Rec Scr Fac Turns Passed 13071 | 53 2486 3165 2902 2878 1587 Spaces Moved 6170 | 50 1069 1413 1436 1454 748 Core 132 | 33 79 . . 10 10 Treads 4384 | . . 1052 1436 1264 632 Legs 1368 | 17 990 361 . . . Wheels 260 | . . . . 180 80 Hover 26 | . . . . . 26 Flight . | . . . . . . Fastest Speed 45 | 50 120 160 155 110 45 Average Speed 170 | 73 173 191 159 170 153 Slowest Speed 1250 | 120 350 260 260 1100 1250 Overloaded Moves . | . . . . . . Propulsion Burnouts . | . . . . . . Robots Hopped . | . . . . . . Potential Cave-ins 1 | . . 1 . . . Cave-ins Triggered . | . . . . . . Exploration Rate (%) 65 | 4 98 83 99 83 23 Regions Visited 5 Branch Regions 3 Pre-discovered Areas 3 | . . 3 . . . Known Exits Taken 5 | 1 1 1 1 1 . Unknown Exits Taken . | . . . . . . Scrap Searched 16 | . . 7 . 9 . Spaces Dug 12 | . 4 7 . 1 . Terrain Destroyed 52 | . 4 16 . 2 30 Melee 5 | . 4 1 . . . Projectile 19 | . . 15 . 2 2 AOE 28 | . . . . . 28 Terrain Rammed . | . . . . . . Walls Destroyed . | . . . . . . Machines Disabled . | . . . . . . Actions | -11 -10 -10 -7 -7 -5 --------- Run | Yrd Mat Sub Rec Scr Fac Total 8243 | 66 1581 1726 1999 1859 1012 Wait 1489 | 3 432 199 389 340 126 Move 6165 | 49 1068 1412 1435 1453 748 Hop . | . . . . . . Pick Up 69 | 7 12 8 15 21 6 Fast Attach 20 | 1 2 2 1 2 12 Attach 39 | 5 3 3 9 4 15 Detach 9 | . . . 3 2 4 Swap 25 | . 3 5 12 3 2 Drop 45 | 1 . 7 3 27 7 Fire 242 | . 51 86 18 7 80 Melee 20 | . 8 4 . . 8 Ram . | . . . . . . Kick 2 | . 2 . . . . Crush 8 | . . . 4 . 4 Escape Stasis . | . . . . . . Rewire 110 | . . . 110 . . Trap . | . . . . . . Miscellaneous . | . . . . . . Route ------- -11/Scrapyard -10/Materials (discovered 6 exits: *Mat x3 / *Min x2 / *Sub) -10/Subcaves (discovered 4 exits: *Mat x2 / *Rec / *Scr) -7/Recycling (discovered 2 exits: *Fac / *Scr) -7/Scraptown (discovered 2 exits: *Fac x2) -5/Factory History --------- Turn | Location | Event 4 | -11/Scrapyard | Identified exit to Materials 4 | -11/Scrapyard | Discovered exit to Materials (range 15) 54 | -11/Scrapyard | Entered Materials 54 | -10/Materials | Evolved 1 slot: Utility x1 222 | -10/Materials | Identified exit to Mines 222 | -10/Materials | Discovered exit to Mines (range 6) 305 | -10/Materials | Build established: Hacker-Mutant 478 | -10/Materials | Identified exit to Materials 478 | -10/Materials | Discovered exit to Materials (range 16) 526 | -10/Materials | Discovered exit to Mines (range 6) 1248 | -10/Materials | Discovered exit to Materials (range 8) 2021 | -10/Materials | Discovered exit to Materials (range 3) 2515 | -10/Materials | Identified exit to Subcaves 2515 | -10/Materials | Discovered exit to Subcaves (range 3) 2540 | -10/Materials | Entered Subcaves 2541 | -10/Subcaves | Approached by a straggling Scientist 2552 | -10/Subcaves | Learned location of Mines (-10) 3341 | -10/Subcaves | Shifting Twisted Machinery released Sub. Beam Cannon 3351 | -10/Subcaves | Shifting Twisted Machinery released Flamer 3427 | -10/Subcaves | Identified exit to Materials 3427 | -10/Subcaves | Discovered exit to Materials (range 6) 3989 | -10/Subcaves | Discovered exit to Materials (range 12) 4215 | -10/Subcaves | Ambushed by Subdwellers from Twisted Machinery 4341 | -10/Subcaves | Learned location of Zion (-7) 4341 | -10/Subcaves | Met a Zionite searching for "candidates" 4526 | -10/Subcaves | A swath of the cavern ceiling suddenly collapsed 4589 | -10/Subcaves | Shifting Twisted Machinery released Sub. Laser 4592 | -10/Subcaves | Shifting Twisted Machinery released Flamer 4629 | -10/Subcaves | Ambushed by Subdwellers from Twisted Machinery 4656 | -10/Subcaves | Scientist uncovered a shortcut to Scraptown 5037 | -10/Subcaves | A Subdweller sparked back to life 5037 | -10/Subcaves | A Subdweller sparked back to life 5037 | -10/Subcaves | A Subdweller sparked back to life 5040 | -10/Subcaves | Core integrity fell below 50% 5070 | -10/Subcaves | Found Prototype Power Core 5071 | -10/Subcaves | Identified Meta Core 5072 | -10/Subcaves | Attached Meta Core, gained temporary slots: Propulsion, Utility, Weapon 5497 | -10/Subcaves | Identified exit to Recycling 5497 | -10/Subcaves | Discovered exit to Recycling (range 11) 5504 | -10/Subcaves | Core integrity fell below 20% 5705 | -10/Subcaves | Entered Recycling 6039 | -7/Recycling | Identified exit to Factory 6039 | -7/Recycling | Discovered exit to Factory (range 5) 7160 | -7/Recycling | Build established: Hacker-Tank 7325 | -7/Recycling | Scanned before Scraplab entrance 7341 | -7/Recycling | Lost 4 allies 7992 | -7/Recycling | Build established: Commander-Skirmisher 8556 | -7/Recycling | Entered Scraplab 8592 | -7/Recycling | Identified exit to Scraptown 8592 | -7/Recycling | Discovered exit to Scraptown (range 3) 8607 | -7/Recycling | Entered Scraptown 8607 | -7/Scraptown | Accompanied by 12 allies 8954 | -7/Scraptown | Discovered exit to Factory (range 5) 9032 | -7/Scraptown | Visited Cyclists 9077 | -7/Scraptown | Visited SPCMW 9376 | -7/Scraptown | Visited TADAMA 9415 | -7/Scraptown | Visited Bundlers 9567 | -7/Scraptown | Visited UFD Registry 9567 | -7/Scraptown | Registered with UFD as "Matrixslasher" 9588 | -7/Scraptown | Visited Shadow of the Wyrm 9801 | -7/Scraptown | Entered Cyclist Reading Room 9941 | -7/Scraptown | Visited Modified Component R&D 10042 | -7/Scraptown | Visited Junk Repository 10101 | -7/Scraptown | Visited Derelict Rescue Squad 10124 | -7/Scraptown | Visited Science Guys 10204 | -7/Scraptown | Visited DA-N13 Charitable Foundation 10211 | -7/Scraptown | Found DCF Scrap (30 items) 10486 | -7/Scraptown | Visited Analyses Database 10533 | -7/Scraptown | Visited Scrapoid Research Area 10550 | -7/Scraptown | Visited Supply Room 10613 | -7/Scraptown | Visited Scrap Suit Storage 10799 | -7/Scraptown | Met Optimus 10799 | -7/Scraptown | Accepted into 0bPrime 11199 | -7/Scraptown | Civil war broke out across Scraptown 11228 | -7/Scraptown | Found Scrap Suit 11342 | -7/Scraptown | Lost 10 allies 11437 | -7/Scraptown | Found Voltaic Drivehammer 11485 | -7/Scraptown | Entered Factory 11485 | -5/Factory | Accompanied by 7 allies 11485 | -5/Factory | Evolved 10 slots: Power x2, Propulsion x4, Utility x3, Weapon x1 12329 | -5/Factory | Build established: Hacker-Skirmisher 12465 | -5/Factory | Spotted B-75 Beast 12898 | -5/Factory | Lost 5 parts (1n2u2w) 12937 | -5/Factory | Cargo convoy interrupted 12943 | -5/Factory | System corruption reached 10% 12978 | -5/Factory | Core integrity fell below 50% 12998 | -5/Factory | Core integrity fell below 20% 13025 | -5/Factory | Lost 15 parts (3p3n5u4w) 13072 | -5/Factory | Destroyed by X-72 Disruptor with Improved Arc Projector Last Messages --------------- Scanner. 13027_ Penetrated by Slug. 13027_ Drone retrieved by Drone Bay (repair cost: 4). 13032_ System corrupted: Component data lost. 13049_ System corrupted: Drone Bay rejected. 13049_ ALERT: Potential suspicious activity detected, Programmers report to Factory Zone 4A. 13052_ >> Machine Analyzer network decryption results: 13052_ Scanalyzer x2 13054_ Ovr. Scrapsphere suddenly begins malfunctioning. 13059_ Acquired Linear Gravjet. 13068_ Penetrated by Slug. 13069_ M-28 Smith repairs H-66 Slayer. 13070_ Ovr. Scrapsphere recovered from malfunction. 13072_ &N%G56KJNAJUOFSR8OMMH90TQOF%FWK 8KY Map ----- +----------------------------------------------------+ | ????????????????????????????????# !#! | | ????????????????????????????????# # | | ????????????????????????????????# # | | ????????????????????????????????# # | | ????????????????????????????????############## | | ?????????????????????????????????? #???# | | ?????????????????????????????????"""" #???# | | ?????????????????????????????????"""" #???# | | ?????????????????????????????????"""" = #???# | | ?????????????????????????????????"""" #???# | | ????????????????????????????????#"""" #???# | | ???????????????????????????]????#"""" #???# | | ????????????????????????????????# #???# | | ?????????????????#??????????????# #???# | | ?????????????????# ????????????#########+##### | | ?????????????????#t ???????????# | | ?????????????????# g???????????# | | ?????????????????# ??????????# | | ?????????????????# g ?????????# | | ?????????????????# ?????????# | | ?????????????????# ????????# x###+######### | | ?????????????????# g######### !# #??? | | ?????????????????# m #! ! #??? | | ?????????????????# m # """"#??? | | ?????????????????# p # """"#??? | | ?????????????????# @ hp # """"#??? | | ?????????????????# t x # """"#??? | | ?????????????????# ##########+#### ! """"???? | | ?????????????????# ??# ## """"???? | | ??????????????? ???# """""" " ## ????? | | ????????????? ?????# ""S""" " #########????? | | ???????????? ??????# """ " #????????????? | | ???????????? u???????# " #????????????? | | ????????????? ?????????# " #????????????? | | ?????????????#??????????# " #????????????? | | ????????????????????????# " #???????"""""" | | ????????????????????????# " #???????"""""" | | ????????????????????????# " #???????"""""" | | ????????????????????????# #???????"""""" | | ????????????????????????# #????????????? | | ????????????????????????# #??????!?????? | | ????????????????????????#############????????????? | | ?????????????????????????????????????????????????? | | ?????????????????????????????????????????????????? | | ???????????????????"?"?"?"?"?????????????????????? | | ???????????????????"?"?"?"?"?????????????????????? | | ???????????????????"?"?"?"?"?????????????????????? | | ???????????????????"?"?"?"?"?????????????????????? | | ???????????????????"?"?"?"?"?????????????????????? | | ???????????????????"?"?"?"?"?????????????????????? | +----------------------------------------------------+ Best States ------------- Heat Dissipation 59 Energy Generation 45 Energy Capacity 610 Matter Stores 300 Matter Capacity 300 Sight Range 16 Terrain Scan Range 14 Terrain Scan Density 110 Jamming Range 14 Additional Mass Support 9 Resistance: KI 35 Resistance: TH 35 Resistance: EX 35 Resistance: EM 35 Resistance: I 35 Resistance: S 35 Resistance: P 35 Core Shielding 20 Evasion (%) 56 Recoil Reduction 4 Offensive Hacking 20 Authchip Count 3 Item Schematics ----------------- Adv. Melee Analysis Suite | -7/Recycling | Hacked Thunder Leg | -7/Recycling | Hacked Lyr. Medium Armor Plating | -7/Recycling | Hacked Robot Schematics ------------------ L-41 Fighter | -7/Recycling | Hacked Fabricated ------------ Nothing Repaired ---------- Nothing Studied --------- None Alien Tech Used ----------------- None Achievements -------------- Thor Challenges ------------ None Game ------ Seed WeldingMinesnifferRifle Manual? 0 Play Time 01:09:31 Cumulative 85.1 hours Start 2025.11.13 @ 10:39:17 End 2025.11.13 @ 11:58:21 Sessions 1 Manual Loads 0 Difficulty Explorer Special Mode None Game No. 83 Rogue 0 Adventurer 0 Explorer 83 Win Type - Total 0 Types 0/0/0/0/0/0/0/0/0/0 Lore% 54 Gallery% 55 Achievement% 43 Wizard Run 0 Options --------- Layout 1 ASCII 0 Keyboard 0 Movement Mouse Keybinds 0 Fullscreen 1 Font 24/Smallcaps Map View 50x35 Zoom Use 0% Tactical HUD 1 Map Filters NONE Filters NONE Steam 1 RUN: 4922b3a8-e210-42c5-a76e-a2bf81c5a6a1